fUSD/lending_fUSD_20260322
["ID","MTS","AMOUNT","RATE_DAILY","PERIOD"]
[408758751,1774200649825,-194.3122,0.000203,2]
[408758752,1774200649834,-4659.0,0.00020347,2]
[408758753,1774200649843,-500.0,0.00020457,2]
[408758754,1774200649853,-330.29829113,0.00020485,2]
[408758755,1774200649862,-394.26,0.00020485,2]
[408758756,1774200649871,-436.52,0.00020485,2]
[408758757,1774200649880,-437.66,0.00020485,2]
[408758758,1774200649889,-500.0,0.00020493,2]
[408758759,1774200649899,-501.0,0.00020527,7]
[408758760,1774200649908,-500.0,0.00020548,2]
[408758761,1774200649917,-1610.0,0.00020553,5]
[408758762,1774200649926,-300.0,0.00020599,2]
[408758763,1774200649936,-300.0,0.00020599,2]
[408758764,1774200649945,-300.0,0.00020599,2]
[408758765,1774200649954,-718.62,0.00020599,2]
[408758766,1774200649963,-150.0,0.00020599,2]
[408758767,1774200649972,-150.0,0.00020599,2]
[408758768,1774200649980,-150.0,0.00020599,2]
[408758769,1774200649989,-150.0,0.00020599,2]
[408758770,1774200649998,-150.0,0.00020599,2]
[408758771,1774200650007,-150.0,0.00020599,2]
[408758772,1774200650015,-150.0,0.00020599,2]
[408758773,1774200650024,-150.0,0.00020599,2]
[408758774,1774200650034,-150.0,0.00020599,2]
[408758775,1774200650319,-221.37388064,0.00020599,2]
[408758776,1774200650328,-134938.59,0.000206,2]
[408758777,1774200650337,-151.0,0.000206,2]
[408758778,1774200650346,-151.0,0.000206,2]
[408758779,1774200650354,-151.0,0.000206,2]
[408758780,1774200650363,-151.0,0.000206,2]
[408758781,1774200650372,-151.0,0.000206,2]
[408758782,1774200650380,-151.0,0.000206,2]
[408758783,1774200650389,-151.0,0.000206,2]
[408758784,1774200650397,-151.0,0.000206,2]
[408758785,1774200650406,-226.61972177,0.00020653,2]
[408758786,1774200650415,-217.15233878,0.00020773,2]
[408758787,1774200650423,-200.0,0.00020773,2]
[408758788,1774200650432,-394.26,0.00020826,2]
[408758789,1774200650440,-1270.63,0.00020898,30]
[408758790,1774200650449,-688.8293877,0.000209,30]
[408758791,1774200650458,-213.8,0.00021,2]
[408758792,1774200650467,-1779.72,0.00021,2]
[408758793,1774200650476,-450.0,0.00021,2]
[408758794,1774200650485,-198.2263952,0.00021,2]
[408758795,1774200650494,-160.0,0.00021,7]
[408758796,1774200650502,-300.0,0.00021,7]
[408758797,1774200650511,-718.62,0.00021001,2]
[408758798,1774200650520,-300.0,0.00021001,2]
[408758799,1774200650528,-300.0,0.00021001,2]
[408758800,1774200650537,-341.95163329,0.00021001,2]
[408758801,1774200650546,-515.18748257,0.00021002,2]
[408758802,1774200650555,-500.0,0.00021002,2]
[408758803,1774200650561,-500.0,0.00021002,2]
[408758804,1774200650569,-500.0,0.00021002,2]
[408758805,1774200650578,-647.01247015,0.00021002,2]
[408758806,1774200650587,-500.0,0.00021002,2]
[408758807,1774200650597,-960.16430936,0.00021002,2]
[408758808,1774200650607,-1800.0,0.00021002,2]
[408758809,1774200650616,-800.0,0.00021002,2]
[408758810,1774200650626,-1800.0,0.00021002,2]
[408758811,1774200650636,-800.0,0.00021002,2]
[408758812,1774200650646,-1800.0,0.00021002,2]
[408758813,1774200650658,-800.0,0.00021002,2]
[408758814,1774200650668,-1800.0,0.00021002,2]
[408758815,1774200650677,-800.0,0.00021002,2]
[408758816,1774200650686,-1800.0,0.00021002,2]
[408758817,1774200650697,-800.0,0.00021002,2]
[408758818,1774200650707,-1800.0,0.00021002,2]
[408758819,1774200650716,-800.0,0.00021002,2]
[408758820,1774200650727,-1800.0,0.00021002,2]
[408758821,1774200650736,-616.35953626,0.00021002,2]
[408758822,1774200650745,-700.0,0.00021002,2]
[408758823,1774200650755,-800.0,0.00021002,2]
[408758824,1774200650764,-700.0,0.00021002,2]
[408758825,1774200650774,-800.0,0.00021002,2]
[408758826,1774200650783,-1800.0,0.00021002,2]
[408758827,1774200650793,-700.0,0.00021002,2]
[408758828,1774200650802,-800.0,0.00021002,2]
[408758829,1774200650811,-1800.0,0.00021002,2]
[408758830,1774200650821,-700.0,0.00021002,2]
[408758831,1774200650830,-800.0,0.00021002,2]
[408758832,1774200650840,-1800.0,0.00021002,2]
[408758833,1774200650849,-800.0,0.00021002,2]
[408758834,1774200650859,-700.0,0.00021002,2]
[408758835,1774200650868,-1800.0,0.00021002,2]
[408758836,1774200650877,-800.0,0.00021002,2]
[408758837,1774200650886,-700.0,0.00021002,2]
[408758838,1774200650896,-1800.0,0.00021002,2]
[408758839,1774200650905,-800.0,0.00021002,2]
[408758840,1774200650915,-700.0,0.00021002,2]
[408758841,1774200650924,-509.10751589,0.00021002,2]
[408758842,1774200650933,-1800.0,0.00021002,2]
[408758843,1774200650943,-1282.65776178,0.00021002,2]
[408758844,1774200650952,-700.0,0.00021002,2]
[408758845,1774200650962,-500.0,0.00021002,2]
[408758846,1774200650971,-2443.28884692,0.00021002,2]
[408758847,1774200650982,-500.0,0.00021002,2]
[408758848,1774200650991,-700.0,0.00021002,2]
[408758849,1774200651001,-669.20743052,0.00021002,2]
[408758850,1774200651010,-700.0,0.00021002,2]
[408758851,1774200651020,-700.0,0.00021002,2]
[408758852,1774200651029,-500.0,0.00021002,2]
[408758853,1774200651039,-700.0,0.00021002,2]
[408758854,1774200651049,-500.0,0.00021002,2]
[408758855,1774200651058,-511.64553484,0.00021002,2]
[408758856,1774200651067,-700.0,0.00021002,2]
[408758857,1774200651077,-500.0,0.00021002,2]
[408758858,1774200651086,-1322.1478145,0.00021002,2]
[408758859,1774200651096,-500.0,0.00021002,2]
[408758860,1774200651106,-526.96332949,0.00021002,2]
[408758861,1774200651115,-1500.0,0.00021002,2]
[408758862,1774200651125,-700.0,0.00021002,2]
[408758863,1774200651134,-1500.0,0.00021002,2]
[408758864,1774200651144,-700.0,0.00021002,2]
[408758865,1774200651154,-1100.0,0.00021002,2]
[408758866,1774200651163,-1500.0,0.00021002,2]
[408758867,1774200651173,-1000.0,0.00021002,2]
[408758868,1774200651183,-1100.0,0.00021002,2]
[408758869,1774200651193,-500.0,0.00021002,2]
[408758870,1774200651202,-1500.0,0.00021002,2]
[408758871,1774200651211,-1100.0,0.00021002,2]
[408758872,1774200651221,-1000.0,0.00021002,2]
[408758873,1774200651230,-500.0,0.00021002,2]
[408758874,1774200651240,-1100.0,0.00021002,2]
[408758875,1774200651249,-1500.0,0.00021002,2]
[408758876,1774200651258,-1000.0,0.00021002,2]
[408758877,1774200651268,-500.0,0.00021002,2]
[408758878,1774200651277,-1100.0,0.00021002,2]
[408758879,1774200651286,-1500.0,0.00021002,2]
[408758880,1774200651296,-500.0,0.00021002,2]
[408758881,1774200651305,-1000.0,0.00021002,2]
[408758882,1774200651315,-1100.0,0.00021002,2]
[408758883,1774200651324,-1500.0,0.00021002,2]
[408758884,1774200651334,-1000.0,0.00021002,2]
[408758885,1774200651343,-500.0,0.00021002,2]
[408758886,1774200651353,-1100.0,0.00021002,2]
[408758887,1774200651362,-1500.0,0.00021002,2]
[408758888,1774200651372,-1000.0,0.00021002,2]
[408758889,1774200651381,-500.0,0.00021002,2]
[408758890,1774200651391,-1100.0,0.00021002,2]
[408758891,1774200651400,-1500.0,0.00021002,2]
[408758892,1774200651411,-800.0,0.00021002,2]
[408758893,1774200651422,-1000.0,0.00021002,2]
[408758894,1774200651431,-500.0,0.00021002,2]
[408758895,1774200651443,-1100.0,0.00021002,2]
[408758896,1774200651454,-1500.0,0.00021002,2]
[408758897,1774200651463,-800.0,0.00021002,2]
[408758898,1774200651472,-1000.0,0.00021002,2]
[408758899,1774200651481,-500.0,0.00021002,2]
[408758900,1774200651490,-1500.0,0.00021002,2]
[408758901,1774200651499,-1100.0,0.00021002,2]
[408758902,1774200651509,-1000.0,0.00021002,2]
[408758903,1774200651518,-800.0,0.00021002,2]
[408758904,1774200651527,-500.0,0.00021002,2]
[408758905,1774200651535,-1500.0,0.00021002,2]
[408758906,1774200651545,-1100.0,0.00021002,2]
[408758907,1774200651554,-800.0,0.00021002,2]
[408758908,1774200651563,-1000.0,0.00021002,2]
[408758909,1774200651572,-939.08274317,0.00021002,2]
[408758910,1774200651581,-1500.0,0.00021002,2]
[408758911,1774200651591,-1100.0,0.00021002,2]
[408758912,1774200651600,-1000.0,0.00021002,2]
[408758913,1774200651610,-800.0,0.00021002,2]
[408758914,1774200651620,-2831.92758367,0.00021002,2]
[408758915,1774200651630,-1100.0,0.00021002,2]
[408758916,1774200651640,-800.0,0.00021002,2]
[408758917,1774200651649,-1000.0,0.00021002,2]
[408758918,1774200651666,-1472.14576397,0.00021002,2]
[408758919,1774200651676,-800.0,0.00021002,2]
[408758920,1774200651685,-1000.0,0.00021002,2]
[408758921,1774200651694,-800.0,0.00021002,2]
[408758922,1774200651705,-1518.70468177,0.00021002,2]
[408758923,1774200651714,-800.0,0.00021002,2]
[408758924,1774200651724,-800.0,0.00021002,2]
[408758925,1774200651735,-800.0,0.00021002,2]
[408758926,1774200651744,-800.0,0.00021002,2]
[408758927,1774200651754,-800.0,0.00021002,2]
[408758928,1774200651764,-1468.68057106,0.00021002,2]
[408758929,1774200651773,-700.0,0.00021002,2]
[408758930,1774200651782,-700.0,0.00021002,2]
[408758931,1774200651791,-700.0,0.00021002,2]
[408758932,1774200651801,-700.0,0.00021002,2]
[408758933,1774200651810,-700.0,0.00021002,2]
[408758934,1774200651819,-700.0,0.00021002,2]
[408758935,1774200651830,-700.0,0.00021002,2]
[408758936,1774200651840,-700.0,0.00021002,2]
[408758937,1774200651849,-700.0,0.00021002,2]
[408758938,1774200651858,-1302.09649328,0.00021002,2]
[408758939,1774200651868,-500.0,0.00021002,2]
[408758940,1774200651877,-500.0,0.00021002,2]
[408758941,1774200651886,-500.0,0.00021002,2]
[408758942,1774200651895,-500.0,0.00021002,2]
[408758943,1774200651905,-500.0,0.00021002,2]
[408758944,1774200651914,-684.45635165,0.00021002,2]
[408758945,1774200651924,-898.25519012,0.00021002,2]
[408758946,1774200651935,-387.999451,0.00021002,2]
[408758947,1774200651944,-387.999451,0.00021002,2]
[408758948,1774200651955,-387.999451,0.00021002,2]
[408758949,1774200651964,-387.999451,0.00021002,2]
[408758950,1774200651973,-1042.059857,0.00021002,2]
[408758951,1774200651983,-1042.059857,0.00021002,2]
[408758952,1774200651991,-1042.059857,0.00021002,2]
[408758953,1774200652000,-1042.059857,0.00021002,2]
[408758954,1774200652009,-151.0,0.00021002,2]
[408758955,1774200652019,-1107.282865,0.00021002,2]
[408758956,1774200652028,-1107.282865,0.00021002,2]
[408758957,1774200652037,-1107.282865,0.00021002,2]
[408758958,1774200652046,-1107.282865,0.00021002,2]
[408758959,1774200652055,-151.0,0.00021002,2]
[408758960,1774200652064,-151.0,0.00021002,2]
[408758961,1774200652073,-151.0,0.00021002,2]
[408758962,1774200652082,-154.05792023,0.00021014,2]
[408758963,1774200652092,-208.17404978,0.0002104,32]
[408758964,1774200652101,-471.72990289,0.00021052,7]
[408758965,1774200652111,-12604.1,0.00021068,2]
[408758966,1774200652120,-150.0,0.00021073,2]
[408758967,1774200652130,-160.20152507,0.00021073,2]
[408758968,1774200652138,-150.0,0.00021073,2]
[408758969,1774200652147,-150.0,0.00021096,2]
[408758970,1774200652156,-394.26,0.00021168,2]
[408758971,1774200652165,-300.0,0.000212,2]
[408758972,1774200652175,-300.0,0.000212,2]
[408758973,1774200652184,-501.0,0.00021253,8]
[408758974,1774200652193,-225.18697532,0.00021321,2]
[408758975,1774200652202,-256.77073787,0.00021321,2]
[408758976,1774200652211,-322.0,0.000214,2]
[408758977,1774200652219,-998.0,0.000214,2]
[408758978,1774200652228,-312.0,0.000214,2]
[408758979,1774200652237,-223.64571998,0.000215,2]
[408758980,1774200652246,-394.27887221,0.00021509,2]
[408758981,1774200652255,-436.53,0.00021509,2]
[408758982,1774200652264,-437.66248748,0.00021509,2]
[408758983,1774200652274,-500.0,0.00021594,2]
[408758984,1774200652283,-548.73,0.000216,2]
[408758985,1774200652292,-150.0,0.00021621,2]
[408758986,1774200652301,-250.0,0.00021621,2]
[408758987,1774200652310,-1406.47,0.000217,7]
[408758988,1774200652319,-201.6316,0.000217,2]
[408758989,1774200652328,-233.51889341,0.00021869,2]
[408758990,1774200652338,-1515.8,0.000219,2]
[408758991,1774200652347,-1577.69,0.000219,2]
[408758992,1774200652356,-3055.64,0.00021918,2]
[408758993,1774200652365,-151.0,0.00021918,2]
[408758994,1774200652374,-151.0,0.00021918,2]
[408758995,1774200652382,-261.106354,0.00021918,2]
[408758996,1774200652391,-746.586769,0.00021918,2]
[408758997,1774200652400,-746.586769,0.00021918,2]
[408758998,1774200652410,-746.586769,0.00021918,2]
[408758999,1774200652419,-746.586769,0.00021918,2]
[408759000,1774200652428,-152.991552,0.00021918,2]
[408759001,1774200652437,-152.991552,0.00021918,2]
[408759002,1774200652447,-152.991552,0.00021918,2]
[408759003,1774200652455,-152.991552,0.00021918,2]
[408759004,1774200652465,-152.991552,0.00021918,2]
[408759005,1774200652474,-152.991552,0.00021918,2]
[408759006,1774200652483,-152.991552,0.00021918,2]
[408759007,1774200652491,-152.991552,0.00021918,2]
[408759008,1774200652500,-150.0,0.00021918,2]
[408759009,1774200652510,-500.0,0.00021918,2]
[408759010,1774200652519,-500.0,0.00021918,2]
[408759011,1774200652528,-174.3464238,0.00021918,2]
[408759012,1774200652537,-500.0,0.00021918,2]
[408759013,1774200652547,-500.0,0.00021918,2]
[408759014,1774200652556,-500.0,0.00021918,2]
[408759015,1774200652565,-215.81848229,0.00021918,2]
[408759016,1774200652574,-150.0,0.00021918,2]
[408759017,1774200652583,-150.0,0.00021918,2]
[408759018,1774200652592,-235.39886034,0.00021918,2]
[408759019,1774200652601,-205.51,0.00021936,2]
[408759020,1774200652736,-161.98,0.00021945,2]
[408759021,1774200652746,-501.0,0.00021978,9]
[408759022,1774200652755,-718.62,0.00021999,2]
[408759023,1774200652764,-800.0,0.00022,2]
[408759024,1774200652774,-1800.0,0.00022,2]
[408759025,1774200652782,-500.0,0.00022,2]
[408759026,1774200652791,-500.0,0.00022,2]
[408759027,1774200652800,-226.78322434,0.00022,2]
[408759028,1774200652809,-800.0,0.00022,2]
[408759029,1774200652818,-1800.0,0.00022,2]
[408759030,1774200652827,-500.0,0.00022,2]
[408759031,1774200652836,-500.0,0.00022,2]
[408759032,1774200652844,-800.0,0.00022,2]
[408759033,1774200652853,-1800.0,0.00022,2]
[408759034,1774200652862,-500.0,0.00022,2]
[408759035,1774200652872,-1800.0,0.00022,2]
[408759036,1774200652882,-800.0,0.00022,2]
[408759037,1774200652895,-500.0,0.00022,2]
[408759038,1774200652905,-1800.0,0.00022,2]
[408759039,1774200652915,-800.0,0.00022,2]
[408759040,1774200652924,-500.0,0.00022,2]
[408759041,1774200652933,-1800.0,0.00022,2]
[408759042,1774200652942,-800.0,0.00022,2]
[408759043,1774200652951,-1800.0,0.00022,2]
[408759044,1774200652960,-500.0,0.00022,2]
[408759045,1774200652969,-700.0,0.00022,2]
[408759046,1774200652978,-800.0,0.00022,2]
[408759047,1774200652986,-700.0,0.00022,2]
[408759048,1774200652995,-1800.0,0.00022,2]
[408759049,1774200653004,-500.0,0.00022,2]
[408759050,1774200653013,-800.0,0.00022,2]
[408759051,1774200653022,-500.0,0.00022,2]
[408759052,1774200653031,-700.0,0.00022,2]
[408759053,1774200653040,-800.0,0.00022,2]
[408759054,1774200653049,-1800.0,0.00022,2]
[408759055,1774200653058,-1500.0,0.00022,2]
[408759056,1774200653067,-800.0,0.00022,2]
[408759057,1774200653076,-700.0,0.00022,2]
[408759058,1774200653085,-1800.0,0.00022,2]
[408759059,1774200653095,-1500.0,0.00022,2]
[408759060,1774200653104,-700.0,0.00022,2]
[408759061,1774200653113,-800.0,0.00022,2]
[408759062,1774200653122,-1800.0,0.00022,2]
[408759063,1774200653131,-1500.0,0.00022,2]
[408759064,1774200653140,-1800.0,0.00022,2]
[408759065,1774200653149,-700.0,0.00022,2]
[408759066,1774200653158,-800.0,0.00022,2]
[408759067,1774200653167,-1500.0,0.00022,2]
[408759068,1774200653175,-800.0,0.00022,2]
[408759069,1774200653184,-700.0,0.00022,2]
[408759070,1774200653193,-1800.0,0.00022,2]
[408759071,1774200653209,-1500.0,0.00022,2]
[408759072,1774200653229,-800.0,0.00022,2]
[408759073,1774200653248,-800.0,0.00022,2]
[408759074,1774200653258,-700.0,0.00022,2]
[408759075,1774200653268,-1800.0,0.00022,2]
[408759076,1774200653279,-1500.0,0.00022,2]
[408759077,1774200653289,-800.0,0.00022,2]
[408759078,1774200653299,-700.0,0.00022,2]
[408759079,1774200653310,-1500.0,0.00022,2]
[408759080,1774200653321,-800.0,0.00022,2]
[408759081,1774200653332,-700.0,0.00022,2]
[408759082,1774200653341,-1500.0,0.00022,2]
[408759083,1774200653353,-800.0,0.00022,2]
[408759084,1774200653361,-700.0,0.00022,2]
[408759085,1774200653370,-1500.0,0.00022,2]
[408759086,1774200653379,-800.0,0.00022,2]
[408759087,1774200653388,-700.0,0.00022,2]
[408759088,1774200653397,-1500.0,0.00022,2]
[408759089,1774200653406,-800.0,0.00022,2]
[408759090,1774200653415,-700.0,0.00022,2]
[408759091,1774200653425,-1500.0,0.00022,2]
[408759092,1774200653434,-700.0,0.00022,2]
[408759093,1774200653443,-500.0,0.00022,2]
[408759094,1774200653452,-800.0,0.00022,2]
[408759095,1774200653462,-700.0,0.00022,2]
[408759096,1774200653471,-800.0,0.00022,2]
[408759097,1774200653480,-750.61175549,0.00022,2]
[408759098,1774200653489,-800.0,0.00022,2]
[408759099,1774200653498,-373.07221866,0.00022,2]
[408759100,1774200653507,-500.0,0.00022,2]
[408759101,1774200653516,-1100.0,0.00022,2]
[408759102,1774200653525,-980.92550253,0.00022,2]
[408759103,1774200653533,-500.0,0.00022,2]
[408759104,1774200653542,-1100.0,0.00022,2]
[408759105,1774200653551,-700.0,0.00022,2]
[408759106,1774200653560,-500.0,0.00022,2]
[408759107,1774200653569,-1100.0,0.00022,2]
[408759108,1774200653579,-500.0,0.00022,2]
[408759109,1774200653588,-500.0,0.00022,2]
[408759110,1774200653597,-700.0,0.00022,2]
[408759111,1774200653606,-500.0,0.00022,2]
[408759112,1774200653615,-1000.0,0.00022,2]
[408759113,1774200653623,-1100.0,0.00022,2]
[408759114,1774200653633,-500.0,0.00022,2]
[408759115,1774200653642,-700.0,0.00022,2]
[408759116,1774200653653,-500.0,0.00022,2]
[408759117,1774200653663,-1000.0,0.00022,2]
[408759118,1774200653673,-1100.0,0.00022,2]
[408759119,1774200653682,-500.0,0.00022,2]
[408759120,1774200653692,-700.0,0.00022,2]
[408759121,1774200653702,-1000.0,0.00022,2]
[408759122,1774200653711,-1100.0,0.00022,2]
[408759123,1774200653721,-500.0,0.00022,2]
[408759124,1774200653732,-700.0,0.00022,2]
[408759125,1774200653741,-1000.0,0.00022,2]
[408759126,1774200653750,-1100.0,0.00022,2]
[408759127,1774200653759,-500.0,0.00022,2]
[408759128,1774200653769,-500.0,0.00022,2]
[408759129,1774200653779,-700.0,0.00022,2]
[408759130,1774200653789,-1000.0,0.00022,2]
[408759131,1774200653798,-1100.0,0.00022,2]
[408759132,1774200653806,-500.0,0.00022,2]
[408759133,1774200653816,-500.0,0.00022,2]
[408759134,1774200653825,-700.0,0.00022,2]
[408759135,1774200653834,-1000.0,0.00022,2]
[408759136,1774200653843,-1100.0,0.00022,2]
[408759137,1774200653852,-500.0,0.00022,2]
[408759138,1774200653861,-700.0,0.00022,2]
[408759139,1774200653870,-500.0,0.00022,2]
[408759140,1774200653879,-1000.0,0.00022,2]
[408759141,1774200653890,-1100.0,0.00022,2]
[408759142,1774200653899,-500.0,0.00022,2]
[408759143,1774200653908,-700.0,0.00022,2]
[408759144,1774200653917,-1000.0,0.00022,2]
[408759145,1774200653926,-1100.0,0.00022,2]
[408759146,1774200653935,-1500.0,0.00022,2]
[408759147,1774200653944,-500.0,0.00022,2]
[408759148,1774200653953,-700.0,0.00022,2]
[408759149,1774200653962,-1000.0,0.00022,2]
[408759150,1774200653971,-1500.0,0.00022,2]
[408759151,1774200653980,-500.0,0.00022,2]
[408759152,1774200653989,-1100.0,0.00022,2]
[408759153,1774200653998,-700.0,0.00022,2]
[408759154,1774200654007,-924.80475936,0.00022,2]
[408759155,1774200654016,-1000.0,0.00022,2]
[408759156,1774200654024,-500.0,0.00022,2]
[408759157,1774200654034,-1100.0,0.00022,2]
[408759158,1774200654043,-346.07913606,0.00022,2]
[408759159,1774200654051,-1500.0,0.00022,2]
[408759160,1774200654061,-700.0,0.00022,2]
[408759161,1774200654070,-1000.0,0.00022,2]
[408759162,1774200654082,-500.0,0.00022,2]
[408759163,1774200654091,-1100.0,0.00022,2]
[408759164,1774200654101,-700.0,0.00022,2]
[408759165,1774200654111,-1000.0,0.00022,2]
[408759166,1774200654120,-500.0,0.00022,2]
[408759167,1774200654130,-1000.0,0.00022,2]
[408759168,1774200654139,-1100.0,0.00022,2]
[408759169,1774200654155,-500.0,0.00022,2]
[408759170,1774200654166,-800.0,0.00022,2]
[408759171,1774200654175,-1000.0,0.00022,2]
[408759172,1774200654185,-500.0,0.00022,2]
[408759173,1774200654194,-800.0,0.00022,2]
[408759174,1774200654203,-800.0,0.00022,2]
[408759175,1774200654213,-800.0,0.00022,2]
[408759176,1774200654222,-800.0,0.00022,2]
[408759177,1774200654231,-800.0,0.00022,2]
[408759178,1774200654241,-800.0,0.00022,2]
[408759179,1774200654250,-155.71170376,0.00022,2]
[408759180,1774200654259,-134938.59,0.00022,7]
[408759181,1774200654268,-160.0,0.00022,7]
[408759182,1774200654278,-160.0,0.00022,7]
[408759183,1774200654287,-500.0,0.00022,2]
[408759184,1774200654296,-500.0,0.00022,2]
[408759185,1774200654305,-500.0,0.00022,2]
[408759186,1774200654314,-500.0,0.00022,2]
[408759187,1774200654324,-500.0,0.00022,2]
[408759188,1774200654333,-500.0,0.00022,2]
[408759189,1774200654342,-500.0,0.00022,2]
[408759190,1774200654351,-934.0,0.00022,2]
[408759191,1774200654359,-1498.68771663,0.00022,30]
[408759192,1774200654368,-746.586769,0.00022,2]
[408759193,1774200654377,-746.586769,0.00022,2]
[408759194,1774200654386,-746.586769,0.00022,2]
[408759195,1774200654395,-746.586769,0.00022,2]
[408759196,1774200654404,-500.0,0.00022,2]
[408759197,1774200654413,-475.976313,0.00022,2]
[408759198,1774200654422,-475.976313,0.00022,2]
[408759199,1774200654431,-475.976313,0.00022,2]
[408759200,1774200654440,-151.0,0.00022,2]
[408759201,1774200654449,-475.976313,0.00022,2]
[408759202,1774200654458,-151.0,0.00022,2]
[408759203,1774200654467,-151.0,0.00022,2]
[408759204,1774200654476,-151.0,0.00022,2]
[408759205,1774200654485,-151.0,0.00022,2]
[408759206,1774200654495,-566.548979,0.00022,2]
[408759207,1774200654503,-566.548979,0.00022,2]
[408759208,1774200654513,-566.548979,0.00022,2]
[408759209,1774200654522,-566.548979,0.00022,2]
[408759210,1774200654532,-556.466781,0.00022,2]
[408759211,1774200654541,-556.466781,0.00022,2]
[408759212,1774200654550,-556.466781,0.00022,2]
[408759213,1774200654559,-556.466781,0.00022,2]
[408759214,1774200654569,-879.37,0.00022,30]
[408759215,1774200654578,-805.77712382,0.00022,7]
[408759216,1774200654587,-164.92,0.00022,2]
[408759217,1774200654597,-160.0,0.00022,2]
[408759218,1774200654607,-300.14839608,0.00022,120]
[408759219,1774200654616,-1694.17,0.00022035,30]
[408759220,1774200654626,-497.94863005,0.000221,2]
[408759221,1774200654636,-241.99217464,0.0002211,2]
[408759222,1774200654646,-150.0,0.00022168,2]
[408759223,1774200654662,-350.0,0.00022168,2]
[408759224,1774200654672,-1298.86,0.0002235,2]
[408759225,1774200654681,-154.05792023,0.00022415,2]
[408759226,1774200654691,-242.15909246,0.00022417,2]
[408759227,1774200654700,-250.0,0.00022466,2]
[408759228,1774200654709,-166.89,0.00022603,2]
[408759229,1774200654718,-1779.72,0.000227,2]
[408759230,1774200654729,-160.0,0.000227,7]
[408759231,1774200654738,-160.0,0.000227,7]
[408759232,1774200654748,-501.0,0.00022703,9]
[408759233,1774200654758,-527.01600993,0.0002271,2]
[408759234,1774200654767,-150.0,0.00022716,2]
[408759235,1774200654776,-450.0,0.00022716,2]
[408759236,1774200654786,-500.0,0.00022796,2]
[408759237,1774200654795,-200.0,0.00022796,2]
[408759238,1774200654804,-150.0,0.000228,30]
[408759239,1774200654814,-150.0,0.00022811,2]
[408759240,1774200654823,-1274.156,0.00022811,2]
[408759241,1774200654840,-3760.0,0.00022811,2]
[408759242,1774200654857,-416.351,0.00022811,2]
[408759243,1774200654867,-3313.69,0.00022822,2]
[408759244,1774200654876,-621.78829552,0.00022963,2]
[408759245,1774200654886,-747.8093786,0.00022963,2]
[408759246,1774200654895,-251.11897888,0.00022965,2]
[408759247,1774200654904,-500.0,0.00023,2]
[408759248,1774200654918,-934.0,0.00023,2]
[408759249,1774200654927,-979.16666667,0.00023,3]
[408759250,1774200654936,-642.4246122,0.00023,7]